bitfinex/quotes_SOLUSD_20250917
["timestamp","ask_amount","ask_price","bid_price","bid_amount"]
[1758088943477,13.59559401,235.3,235.28,0.06]
[1758088943786,2.05184709,235.29,235.28,0.06]
[1758088944098,2.72184709,235.29,235.28,0.06]
[1758088944486,28.72184709,235.29,235.28,0.06]
[1758088944980,32.97192146,235.29,235.28,0.06]
[1758088945563,46.56751547,235.29,235.28,0.06]
[1758088946890,44.13053348,235.26,235.25,1e-08]
[1758088947072,26.0,235.22,235.21,0.06]
[1758088947274,28.05184709,235.22,235.21,0.06]
[1758088947472,26.0,235.22,235.21,0.06]
[1758088947673,2.05184709,235.22,235.21,0.06]
[1758088948088,32.30318626,235.22,235.21,0.06]
[1758088948788,32.30318626,235.22,235.18,0.2]
[1758088948789,39.59559401,235.19,235.18,0.2]
[1758088948992,43.69928819,235.19,235.18,0.2]
[1758088949176,41.6474411,235.19,235.18,0.2]
[1758088949375,28.05184709,235.19,235.18,0.2]
[1758088950069,32.30372854,235.19,235.18,0.2]
[1758088950286,46.60932255,235.19,235.18,0.2]
[1758088950488,48.66116964,235.19,235.18,0.2]
[1758088951169,13.59559401,235.18,235.16,0.2]
[1758088951374,17.69928819,235.17,235.16,0.2]
[1758088951595,18.40928819,235.17,235.16,0.2]
[1758088951779,18.40928819,235.17,235.13,0.06]
[1758088951780,26.0,235.14,235.13,0.06]
[1758088951993,28.05184709,235.14,235.13,0.06]
[1758088952170,32.30463266,235.14,235.13,0.06]
[1758088956284,0.71,235.26,235.13,5.00294251]
[1758088956507,2.05184709,235.19,235.14,0.69]
[1758088956679,2.05184709,235.18,235.14,0.69]
[1758088956996,2.05184709,235.19,235.14,0.69]
[1758088957202,2.05184709,235.18,235.14,0.69]
[1758088957700,2.05184709,235.15,235.14,0.69]
[1758088959102,6.30445181,235.15,235.14,0.69]
[1758088959485,13.87991715,235.21,235.14,0.69]
[1758088959692,2.05184709,235.15,235.14,0.69]
[1758088959907,28.76035826,235.21,235.14,0.69]
[1758088960093,2.05184709,235.15,235.14,0.69]
[1758088960804,2.05184709,235.17,235.14,4.94276852]
[1758088961108,2.05184709,235.18,235.15,0.69]
[1758088961682,2.05184709,235.18,235.1,0.06]
[1758088961683,2.05184709,235.16,235.1,0.06]
[1758088961879,0.28432314,235.14,235.1,0.06]
[1758088962095,2.05184709,235.11,235.04,0.69]
[1758088962314,0.71,235.11,235.04,0.69]
[1758088962481,2.05184709,235.07,235.04,0.69]
[1758088962692,2.05184709,235.07,234.94,2.05184709]
[1758088962693,2.05184709,235.07,235.01,0.69]
[1758088963004,15.78960267,235.07,235.01,0.69]
[1758088963206,48.94766331,235.07,235.01,0.69]
[1758088963504,46.89581622,235.07,235.01,0.69]
[1758088963709,44.13396913,235.07,234.96,2.22218941]
[1758088963915,45.4498357,235.07,235.03,0.69]
[1758088964214,30.25405198,235.07,235.03,0.69]
[1758088964390,26.0,235.07,235.03,0.69]
[1758088964709,27.31586657,235.07,235.03,0.69]
[1758088965097,1.31586657,235.07,235.03,0.69]
[1758088966922,1.31586657,235.07,234.98,30.92]
[1758088966923,4.25355471,235.1,235.06,0.89]
[1758088967212,1.31586657,235.07,235.06,0.2]
[1758088967593,1.31586657,235.07,235.06,0.89]
[1758088969390,4.25342194,235.11,235.06,0.89]
[1758088969594,1.31586657,235.07,235.06,0.2]
[1758088970115,1.31586657,235.07,235.06,0.89]
[1758088970286,4.25342194,235.11,235.06,0.89]
[1758088970486,1.31586657,235.07,235.06,0.2]
[1758088971101,1.31586657,235.07,235.06,0.89]
[1758088972017,4.25343488,235.11,235.06,0.89]
[1758088972209,1.31586657,235.07,235.06,0.2]
[1758088972607,4.25296644,235.13,235.06,0.2]
[1758088972801,135.95296644,235.13,235.06,0.89]
[1758088973019,1.31586657,235.1,235.07,0.69]
[1758088973392,135.95296644,235.13,235.08,34.72]
[1758088973393,1.31586657,235.09,235.08,34.72]
[1758088973898,1.31586657,235.09,235.06,0.2]
[1758088973899,1.31586657,235.09,235.07,34.72]
[1758088974125,1.31586657,235.08,235.07,34.72]
[1758088974307,1.31586657,235.08,235.06,0.2]
[1758088974518,6.27991855,235.07,235.06,0.2]
[1758088975821,5.56991855,235.07,235.06,0.2]
[1758088976207,6.27991855,235.07,235.06,0.2]
[1758088977597,5.56991855,235.07,235.06,0.2]
[1758088980523,6.27991855,235.07,235.06,0.2]
[1758088980725,5.56991855,235.07,235.06,0.2]
[1758088981499,1.31586657,235.07,235.06,0.2]
[1758088981700,0.03,235.1,235.06,0.87]
[1758088981923,0.03,235.1,235.07,0.67]
[1758088982230,1.31586657,235.08,235.07,0.67]
[1758088983943,1.31586657,235.08,235.06,34.74]
[1758088983944,5.56990031,235.08,235.06,34.74]
[1758088984125,1.31586657,235.07,235.06,34.74]
[1758088984519,1.31586657,235.07,235.06,0.2]
[1758088984744,1.31586657,235.07,235.06,35.39]
[1758088985039,1.31586657,235.08,235.06,0.87]
[1758088985242,4.28354897,235.1,235.07,0.67]
[1758088985437,4.28354897,235.1,235.06,34.72]
[1758088985438,1.34586657,235.1,235.08,0.67]
[1758088985644,0.03,235.1,235.09,34.52]
[1758088985844,0.03,235.1,235.07,0.67]
[1758088986044,1.31586657,235.09,235.08,34.52]
[1758088986233,1.31586657,235.09,235.08,34.5]
[1758088986432,0.03,235.1,235.08,35.17]
[1758088986665,0.03,235.1,235.09,0.67]
[1758088987350,0.03,235.1,235.09,35.17]
[1758088987529,0.03,235.1,235.09,36.48586657]
[1758088987848,0.03,235.1,235.09,4.92369007]
[1758088988039,0.03,235.1,235.09,39.44369007]
[1758088989648,0.03,235.1,235.09,0.67]
[1758088989850,0.03,235.1,235.09,35.17]
[1758088990952,0.03,235.1,235.09,36.48586657]
[1758088991251,0.03,235.13,235.11,13.59559401]
[1758088991464,0.03,235.13,235.12,1.31586657]
[1758088991638,0.03,235.13,235.12,1.98586657]
[1758088991826,0.03,235.13,235.12,36.44586657]
[1758088992029,0.03,235.13,235.12,40.69901389]
[1758088994658,0.03,235.13,235.12,0.67]
[1758088994968,0.03,235.13,235.12,35.09]
[1758088995266,0.03,235.13,235.12,36.40586657]
[1758088995469,0.03,235.13,235.12,1.98586657]
[1758088995648,0.03,235.13,235.1,26.0]
[1758088995854,0.03,235.13,235.11,35.07]
[1758088996272,0.03,235.13,235.11,0.67]
[1758088996562,1.34586657,235.13,235.12,34.4]
[1758088997076,0.03,235.13,235.12,34.4]
[1758088997368,0.03,235.13,235.12,35.07]
[1758088997848,0.03,235.13,235.12,34.4]
[1758088998962,0.03,235.13,235.1,4.2534941]
[1758088999176,0.03,235.13,235.12,0.67]
[1758088999471,0.03,235.13,235.12,1.98586657]
[1758088999673,0.03,235.13,235.12,36.32586657]
[1758089000474,0.03,235.13,235.12,40.57901389]
[1758089001371,0.03,235.13,235.12,6.23901389]
[1758089001555,0.03,235.13,235.12,40.55901389]
[1758089001971,0.03,235.13,235.12,54.43893104]
[1758089002471,0.03,235.13,235.12,4.92314732]
[1758089002674,0.03,235.13,235.12,39.22314732]
[1758089003379,0.03,235.13,235.12,40.53901389]
[1758089004803,0.03,235.13,235.12,54.1346079]
[1758089006395,0.03,235.13,235.12,4.25314732]
[1758089006694,2.00586657,235.13,235.12,34.22]
[1758089006891,1.34586657,235.13,235.12,34.22]
[1758089007068,0.03,235.13,235.12,34.22]
[1758089007575,0.03,235.13,235.12,34.87]
[1758089007984,0.03,235.13,235.12,34.22]
[1758089008191,0.03,235.13,235.1,4.90334169]
[1758089008383,0.03,235.13,235.11,34.22]
[1758089008982,0.03,235.13,235.11,38.47328639]
[1758089009381,0.03,235.13,235.12,0.65]
[1758089010185,0.03,235.13,235.11,38.47328639]
[1758089010995,0.03,235.13,235.11,4.25328639]
[1758089011198,0.03,235.13,235.12,34.18]
[1758089011586,0.03,235.13,235.12,34.83]
[1758089011902,0.03,235.13,235.12,36.14586657]
[1758089013484,0.03,235.13,235.12,40.39901389]
[1758089015181,0.03,235.13,235.12,53.9946079]
[1758089015387,0.03,235.13,235.12,54.4946079]
[1758089017100,0.03,235.13,235.12,54.3746079]
[1758089017306,0.03,235.13,235.12,54.65893104]
[1758089018691,0.03,235.13,235.12,40.10901389]
[1758089018889,0.03,235.13,235.12,38.79314732]
[1758089019098,0.03,235.13,235.12,40.75901389]
[1758089019695,0.03,235.13,235.12,6.71901389]
[1758089019888,0.03,235.13,235.12,40.73901389]
[1758089020886,0.03,235.13,235.12,54.61893104]
[1758089021397,0.03,235.13,235.12,53.30306447]
[1758089021587,0.03,235.13,235.12,54.61893104]
[1758089022203,0.03,235.13,235.12,53.30306447]
[1758089022402,0.03,235.13,235.12,40.06901389]
[1758089023010,0.03,235.13,235.12,6.06901389]
[1758089023210,0.03,235.13,235.12,40.04901389]
[1758089023410,0.03,235.13,235.12,54.2946079]
[1758089023717,0.03,235.13,235.12,55.00424577]
[1758089024016,0.03,235.13,235.12,55.73979271]
[1758089025632,0.03,235.13,235.12,52.32874133]
[1758089025795,0.03,235.13,235.12,4.75314732]
[1758089025991,0.03,235.13,235.12,38.71314732]
[1758089026709,0.03,235.13,235.12,40.76456083]
[1758089027017,0.03,235.13,235.12,41.41456083]
[1758089027213,0.03,235.13,235.12,39.36314732]
[1758089027426,0.03,235.13,235.12,64.69314732]
[1758089027799,0.03,235.13,235.12,30.75314732]
[1758089028118,0.03,235.13,235.12,64.69314732]
[1758089028304,0.03,235.13,235.12,30.75314732]
[1758089028624,0.03,235.13,235.12,64.69314732]
[1758089028796,0.03,235.13,235.12,64.67314732]
[1758089029201,0.03,235.13,235.12,60.42]
[1758089030943,0.03,235.13,235.12,63.12141351]
[1758089031096,0.03,235.13,235.12,76.71700752]
[1758089031296,0.03,235.13,235.12,77.00133066]
[1758089031631,0.03,235.13,235.12,77.42664539]
[1758089033101,0.03,235.13,235.12,43.50664539]
[1758089033303,0.03,235.13,235.12,77.40664539]
[1758089033903,0.03,235.13,235.12,76.98133066]
[1758089034103,0.03,235.13,235.12,43.08133066]
[1758089034316,0.03,235.13,235.12,76.98133066]
[1758089036320,0.03,235.13,235.12,81.23447798]
[1758089037838,0.03,235.13,235.12,81.65979271]
[1758089039451,0.03,235.13,235.12,81.23447798]
[1758089040628,0.03,235.13,235.12,81.65979271]
[1758089040826,0.03,235.13,235.12,81.23447798]
[1758089041026,0.03,235.13,235.12,79.18306447]
[1758089041224,0.03,235.13,235.12,81.23447798]
[1758089041445,0.03,235.13,235.12,81.25447798]
[1758089041662,0.03,235.13,235.12,47.35447798]
[1758089041864,0.03,235.13,235.12,81.25447798]
[1758089042031,1e-08,235.15,235.14,0.28432314]
[1758089042231,1e-08,235.15,235.14,50.25660921]
[1758089042543,1e-08,235.15,235.14,55.17939478]
[1758089042927,1e-08,235.18,235.17,39.59559401]
[1758089043158,1e-08,235.18,235.17,77.59842103]
[1758089043469,1e-08,235.18,235.17,78.69364533]
[1758089043962,1e-08,235.18,235.17,76.64223182]
[1758089044554,1e-08,235.18,235.17,80.89447487]
[1758089044731,1e-08,235.18,235.17,82.94588838]
[1758089045067,1e-08,235.18,235.17,82.92588838]
[1758089045368,1e-08,235.18,235.17,80.87447487]
[1758089045946,1e-08,235.18,235.17,82.92588838]
[1758089046156,1e-08,235.18,235.17,82.50066408]
[1758089047676,1e-08,235.18,235.17,82.92588838]
[1758089048162,1e-08,235.18,235.17,81.15879801]
[1758089048337,1e-08,235.18,235.17,83.21021152]
[1758089049658,1e-08,235.22,235.21,39.59559401]
[1758089049841,1e-08,235.22,235.21,75.81133066]
[1758089050042,1e-08,235.22,235.21,76.48133066]
[1758089050562,1e-08,235.22,235.21,80.73285057]
[1758089052648,0.72,235.31,235.25,26.0]
[1758089052856,0.72,235.31,235.28,2.05141351]
[1758089053046,0.72,235.3,235.29,33.88]
[1758089054281,0.72,235.3,235.29,38.13007437]
[1758089055463,0.03,235.32,235.29,38.13007437]
[1758089055668,0.72,235.31,235.29,38.13007437]
[1758089055866,0.72,235.3,235.29,38.13007437]
[1758089057266,0.03,235.32,235.29,6.30148788]
[1758089057470,0.03,235.32,235.31,4.24971314]
[1758089059778,0.75,235.32,235.31,4.24971314]
[1758089059969,0.75,235.32,235.29,4.24992486]
[1758089060169,0.72,235.31,235.3,33.86]
[1758089060356,0.03,235.32,235.3,33.86]
[1758089060557,0.75,235.32,235.3,33.86]
[1758089060759,0.75,235.32,235.3,38.10974343]
[1758089061958,0.03,235.32,235.31,15.64700752]
[1758089062157,0.03,235.32,235.31,16.31700752]
[1758089062368,0.03,235.32,235.31,17.02630197]
[1758089062967,0.03,235.32,235.31,21.27601511]
[1758089065282,0.03,235.32,235.31,41.27601511]
[1758089065461,0.03,235.32,235.31,21.27601511]
[1758089065658,0.03,235.35,235.34,39.87991715]
[1758089065857,0.03,235.41,235.34,39.87991715]
[1758089065858,0.03,235.41,235.35,20.28432314]
[1758089066057,0.03,235.41,235.4,2.33573665]
[1758089066301,0.03,235.41,235.4,36.19573665]
[1758089066467,0.03,235.41,235.4,36.86573665]
[1758089066865,0.03,235.41,235.4,37.36573665]
[1758089067084,0.03,235.41,235.4,41.61382501]
[1758089067484,0.03,235.41,235.4,40.94382501]
[1758089068682,0.03,235.41,235.4,7.08382501]
[1758089068866,0.69,235.41,235.4,26.5]
[1758089069066,0.69,235.41,235.4,59.84]
[1758089069268,0.03,235.41,235.4,73.43559401]
[1758089069691,0.03,235.41,235.4,75.13688912]
[1758089069895,0.69,235.41,235.4,1.70129511]
[1758089070100,0.69,235.41,235.38,2.05141351]
[1758089070101,0.69,235.41,235.38,13.59559401]
[1758089070262,0.66,235.4,235.39,15.29703386]
[1758089070468,0.66,235.4,235.39,49.13703386]
[1758089070685,0.03,235.41,235.39,49.13703386]
[1758089070987,0.66,235.4,235.39,49.13703386]
[1758089071200,0.66,235.4,235.39,1.70143985]
[1758089071370,0.66,235.4,235.39,33.84]
[1758089071900,0.03,235.41,235.4,13.59559401]
[1758089072576,0.03,235.41,235.4,47.43559401]
[1758089072770,0.03,235.41,235.4,13.59559401]
[1758089072967,0.03,235.41,235.4,47.43559401]
[1758089073193,0.69,235.41,235.4,33.84]
[1758089074182,0.03,235.41,235.4,48.24775558]
[1758089074492,0.03,235.41,235.4,49.98700752]
[1758089075190,0.03,235.41,235.4,16.14700752]
[1758089075373,0.03,235.41,235.4,49.98700752]
[1758089075573,0.03,235.41,235.4,50.94133066]
[1758089076293,0.03,235.41,235.4,49.98700752]
[1758089076499,0.03,235.41,235.4,50.65700752]
[1758089076800,0.03,235.41,235.4,16.81700752]
[1758089077004,0.03,235.41,235.4,50.65700752]
[1758089077307,0.03,235.42,235.4,52.64255342]
[1758089077487,0.1,235.43,235.42,13.87991715]
[1758089077803,0.1,235.43,235.42,49.46700752]
[1758089079582,0.1,235.43,235.42,50.13700752]
[1758089079781,0.1,235.43,235.42,51.83808558]
[1758089080516,0.1,235.43,235.42,52.12240872]
[1758089081300,0.1,235.43,235.42,17.34808558]
[1758089081600,0.1,235.43,235.42,51.16808558]
[1758089081802,0.1,235.43,235.42,15.29667207]
[1758089081984,0.1,235.43,235.42,49.46700752]
[1758089082180,0.1,235.43,235.42,51.16815792]
[1758089082907,0.1,235.43,235.42,52.12248106]
[1758089085109,1e-08,235.43,235.42,50.42133066]
[1758089085506,0.03,235.46,235.45,39.59559401]
[1758089085697,0.03,235.46,235.45,75.46700752]
[1758089085899,0.03,235.46,235.45,75.39497635]
[1758089086197,0.03,235.46,235.45,88.15143431]
[1758089086990,0.03,235.46,235.45,87.48143431]
[1758089087423,0.03,235.46,235.45,74.70497635]
[1758089087589,0.03,235.46,235.45,91.70862053]
[1758089087989,0.03,235.46,235.45,78.95216258]
[1758089088218,0.03,235.46,235.45,49.39774647]
[1758089088431,0.03,235.46,235.45,83.19774647]
[1758089089089,0.03,235.46,235.45,78.95216258]
[1758089089693,0.03,235.46,235.45,45.15216258]
[1758089089905,0.03,235.46,235.45,78.95216258]
[1758089090100,0.03,235.46,235.45,45.15216258]
[1758089090299,0.03,235.46,235.45,78.95216258]
[1758089091315,0.03,235.46,235.45,45.15216258]
[1758089091513,0.03,235.46,235.45,78.95216258]
[1758089092214,0.69,235.46,235.45,30.24718623]
[1758089092822,0.69,235.46,235.45,64.04718623]
[1758089092998,0.69,235.46,235.45,59.8]
[1758089093327,0.69,235.46,235.45,33.8]
[1758089093625,6.2463882,235.46,235.45,33.8]
[1758089093803,4.93700586,235.46,235.45,33.8]
[1758089094006,0.69,235.46,235.45,33.8]
[1758089097226,0.03,235.46,235.45,33.8]
[1758089098101,0.69,235.46,235.41,4.2479079]
[1758089098302,0.66,235.45,235.42,33.8]
[1758089098504,0.66,235.44,235.41,4.2479079]
[1758089098709,0.66,235.44,235.42,33.8]
[1758089098924,0.66,235.44,235.43,34.3]
[1758089100413,0.66,235.44,235.43,33.8]
[1758089100650,6.2167806,235.44,235.37,1.70136747]
[1758089100925,0.66,235.43,235.38,33.78]
[1758089101222,1.30938234,235.41,235.38,33.78]
[1758089101431,0.69,235.46,235.39,0.69]
[1758089101735,0.69,235.46,235.41,1.30938234]
[1758089101906,0.66,235.45,235.42,33.78]
[1758089102232,0.66,235.45,235.43,33.78]
[1758089102427,0.66,235.45,235.44,33.78]
[1758089103326,0.03,235.46,235.44,33.78]
[1758089103812,0.69,235.46,235.44,33.78]
[1758089104329,0.03,235.46,235.45,0.69]
[1758089104546,0.03,235.46,235.45,40.02656857]
[1758089104904,0.03,235.46,235.45,53.62216258]
[1758089107002,0.03,235.46,235.45,17.84278024]
[1758089107209,0.03,235.46,235.45,51.62278024]
[1758089107530,0.03,235.46,235.45,52.31278024]
[1758089109018,0.03,235.46,235.45,53.62216258]
[1758089110429,0.03,235.46,235.45,54.12216258]
[1758089110827,0.03,235.46,235.45,53.62216258]
[1758089111133,0.03,235.46,235.45,18.53278024]
[1758089111311,0.03,235.46,235.45,51.60278024]
[1758089111718,0.03,235.46,235.44,0.06]
[1758089111929,0.03,235.46,235.45,33.76]
[1758089112419,0.03,235.46,235.45,34.45]
[1758089112608,0.03,235.46,235.45,33.76]
[1758089112808,0.03,235.46,235.44,0.06]
[1758089113139,1.33938234,235.46,235.45,33.76]
[1758089113317,0.03,235.46,235.45,33.76]
[1758089119632,0.03,235.46,235.44,4.30733986]
[1758089119833,0.03,235.46,235.45,33.76]
[1758089120840,0.03,235.46,235.45,53.60216258]
[1758089121538,0.03,235.46,235.45,52.29278024]
[1758089121733,0.03,235.46,235.45,53.60216258]
[1758089122318,0.03,235.46,235.45,52.29278024]
[1758089122533,0.03,235.46,235.45,53.60216258]
[1758089124225,0.03,235.46,235.45,52.29278024]
[1758089124438,0.03,235.46,235.45,53.60216258]
[1758089125443,0.03,235.46,235.45,53.88648572]
[1758089125819,0.03,235.46,235.45,55.58727446]
[1758089129445,1e-08,235.48,235.47,14.90497635]
[1758089129628,1e-08,235.48,235.47,48.64497635]
[1758089129820,1e-08,235.48,235.47,49.30497635]
[1758089130351,1e-08,235.48,235.47,49.58929949]
[1758089130546,0.03,235.49,235.48,13.87991715]
[1758089130852,0.03,235.5,235.48,14.53991715]
[1758089131038,0.03,235.5,235.49,48.92929949]
[1758089131240,0.03,235.5,235.49,49.58929949]
[1758089131547,0.03,235.5,235.49,53.8357643]
[1758089131739,1e-08,235.51,235.5,13.87991715]
[1758089131932,1e-08,235.51,235.5,14.53991715]
[1758089132337,0.7,235.63,235.54,13.87991715]
[1758089132546,0.7,235.63,235.58,40.90497635]
[1758089132852,0.7,235.63,235.58,74.62497635]
[1758089133439,0.7,235.63,235.58,78.86981886]
[1758089133834,0.7,235.63,235.58,79.52981886]
[1758089134052,0.7,235.63,235.58,78.86981886]
[1758089134753,0.7,235.63,235.58,91.76744157]
[1758089135732,0.1,235.65,235.58,90.74238237]
[1758089135938,0.7,235.64,235.58,92.42744157]
[1758089136248,0.7,235.64,235.58,91.76744157]
[1758089136438,0.7,235.64,235.58,92.42744157]
[1758089136633,0.7,235.64,235.58,92.92744157]
[1758089136835,0.7,235.64,235.58,58.54744157]
[1758089137040,0.7,235.62,235.58,92.26744157]
[1758089137250,0.9,235.59,235.58,35.52938234]
[1758089137454,0.9,235.59,235.58,0.5]
[1758089137656,0.9,235.59,235.58,33.72]
[1758089137840,0.9,235.59,235.54,1.30938234]
[1758089138036,0.9,235.59,235.52,4.24578368]
[1758089138037,0.7,235.58,235.55,33.7]
[1758089138349,4.4446845,235.59,235.56,33.7]
[1758089138350,0.7,235.57,235.56,33.7]
[1758089138859,0.7,235.57,235.52,1.30938234]
[1758089139059,0.2,235.59,235.52,4.24588569]
[1758089139265,0.7,235.58,235.56,1.30938234]
[1758089139447,0.7,235.58,235.57,33.7]
[1758089139945,0.7,235.58,235.57,35.00938234]
[1758089140146,0.2,235.59,235.57,35.00938234]
[1758089140637,0.2,235.59,235.58,14.25559401]
[1758089140836,0.2,235.59,235.58,18.50043652]
[1758089141551,0.2,235.59,235.58,52.20043652]
[1758089142562,0.2,235.59,235.58,53.794142]
[1758089143439,0.1,235.65,235.62,13.59559401]
[1758089143659,0.9,235.69,235.68,39.59559401]
[1758089143660,0.2,235.69,235.68,39.59559401]
[1758089143859,0.2,235.69,235.68,61.00938234]
[1758089144238,0.2,235.69,235.68,40.25559401]
[1758089144450,0.2,235.69,235.68,40.90497635]
[1758089144772,0.2,235.69,235.68,74.60497635]
[1758089145266,0.2,235.69,235.68,40.90497635]
[1758089145572,0.2,235.69,235.68,78.84801776]
[1758089145878,0.2,235.69,235.68,45.88098874]
[1758089146060,0.2,235.69,235.68,79.58098874]
[1758089146262,0.9,235.69,235.62,4.24412189]
[1758089146464,0.9,235.69,235.59,75.95220774]
[1758089146465,0.7,235.68,235.59,75.95220774]
[1758089146770,0.7,235.67,235.62,2.04235332]
[1758089146962,0.7,235.66,235.6,2.04235332]
[1758089147160,4.44288591,235.69,235.61,33.7]
[1758089147365,0.7,235.65,235.61,33.7]
[1758089147560,0.7,235.64,235.61,33.7]
[1758089147868,4.44288591,235.69,235.61,33.7]
[1758089147869,0.2,235.69,235.65,39.59559401]
[1758089148087,0.2,235.69,235.68,2.04235332]
[1758089148369,0.7,235.68,235.65,2.04235332]
[1758089148689,0.2,235.69,235.62,26.0]
[1758089148855,0.9,235.69,235.65,2.04235332]
[1758089149065,0.7,235.68,235.66,33.9]
[1758089150254,2.04235332,235.68,235.67,33.9]
[1758089150451,2.04235332,235.68,235.59,75.9521296]
[1758089150672,2.04235332,235.66,235.6,33.88]
[1758089150963,4.44288473,235.69,235.6,35.92235332]
[1758089150964,0.7,235.67,235.6,35.92235332]
[1758089151343,0.7,235.67,235.6,33.88]
[1758089151546,0.7,235.67,235.6,35.92235332]
[1758089151978,2.04235332,235.66,235.6,33.88]
[1758089152174,2.04235332,235.66,235.6,38.12438406]
[1758089152578,0.2,235.69,235.62,2.04235332]
[1758089152876,2.04235332,235.68,235.63,33.88]
[1758089153082,2.04235332,235.68,235.63,34.54]
[1758089154072,2.04235332,235.67,235.6,6.94679781]
[1758089154372,2.04235332,235.66,235.61,33.86]
[1758089154579,0.7,235.67,235.61,33.86]
[1758089154774,2.04235332,235.66,235.61,33.86]
[1758089154975,0.9,235.69,235.62,0.66]
[1758089154976,2.04235332,235.67,235.62,0.66]
[1758089156387,0.9,235.69,235.62,6.28630462]
[1758089156557,2.24235332,235.69,235.63,0.72]
[1758089156764,2.24235332,235.69,235.64,33.84]
[1758089157070,0.2,235.69,235.64,35.88235332]
[1758089157270,0.2,235.69,235.65,0.72]
[1758089158268,0.2,235.69,235.66,33.82]
[1758089159561,2.04235332,235.68,235.64,0.72]
[1758089159766,2.04235332,235.65,235.61,4.96416459]
[1758089159980,2.04235332,235.65,235.62,33.78]
[1758089160156,0.72,235.67,235.62,33.78]
[1758089160600,2.04235332,235.65,235.63,0.72]
[1758089160886,2.04235332,235.65,235.62,38.02398493]
[1758089161061,2.04235332,235.66,235.62,38.02398493]
[1758089161258,2.04235332,235.66,235.62,33.78]
[1758089161477,2.04235332,235.66,235.63,0.72]
[1758089162376,2.04235332,235.66,235.61,4.96429328]
[1758089162572,2.04235332,235.66,235.62,34.48]
[1758089163286,2.04235332,235.66,235.62,38.72405566]
[1758089164673,2.04235332,235.64,235.59,71.70758387]
[1758089164874,2.04235332,235.6,235.59,71.70758387]
[1758089165078,2.04235332,235.6,235.59,105.42758387]
[1758089165308,2.76235332,235.6,235.59,71.70758387]
[1758089165477,2.76235332,235.6,235.59,105.44758387]
[1758089165684,2.76235332,235.6,235.59,71.70758387]
[1758089165886,2.76235332,235.6,235.59,105.42758387]
[1758089166400,2.04235332,235.6,235.59,105.42758387]
[1758089168886,2.76235332,235.6,235.59,105.40758387]
[1758089169085,4.24466233,235.59,235.51,26.78]
[1758089169299,2.04235332,235.56,235.52,33.7]
[1758089169500,2.04235332,235.55,235.53,0.72]
[1758089169705,2.04235332,235.55,235.54,0.72]
[1758089170204,2.04235332,235.56,235.53,33.7]
[1758089170406,2.04235332,235.56,235.53,34.42]
[1758089170907,2.04235332,235.56,235.53,0.72]
[1758089171200,2.04235332,235.56,235.54,33.7]
[1758089172004,2.04235332,235.56,235.54,34.42]
[1758089172185,2.04235332,235.55,235.51,0.06]
[1758089172393,2.04235332,235.53,235.51,0.06]
[1758089172701,2.04235332,235.52,235.51,0.06]
[1758089172879,30.24501347,235.58,235.51,33.76]
[1758089173082,0.28432314,235.57,235.51,33.76]
[1758089173294,2.04235332,235.53,235.51,33.76]
[1758089173521,2.04235332,235.52,235.51,33.76]
[1758089173885,2.04235332,235.52,235.51,34.48]
[1758089174089,2.04235332,235.56,235.51,34.48]
[1758089174311,2.04235332,235.54,235.51,34.48]
[1758089174695,2.04235332,235.54,235.52,33.7]